Workbook

Sheet Fragebogen
A1: Arbeitsbezogenes Verhaltens- und Erlebensmuster (AVEM)
A3: Anleitung
A4: Wir bitten Sie, einige Ihrer üblichen Verhaltensweisen, Einstellungen und Gewohnheiten zu beschreiben, wobei vor allem auf Ihr Arbeitsleben Bezug genommen wird. Dazu finden Sie im folgenden eine Reihe von Aussagen. Lesen Sie jeden dieser Sätze gründlich durch und entscheiden Sie, in welchem Maße er auf Sie persönlich zutrifft.
A6: Hinweis
A7: Bei Ihrer Antwort steht 1 für „trifft überhaupt nicht zu“, 5 für „trifft völlig zu“ und die Zahlen dazwischen für die verschiedenen Abstufungen.
A9: Aussage | C9: Zutreffend?
A10: 1 | B10: Die Arbeit ist für mich der wichtigste Lebensinhalt.
A11: 2 | B11: Ich möchte beruflich weiter kommen, als es die meisten meiner Bekannten geschafft haben.
A12: 3 | B12: Wenn es sein muss, arbeite ich bis zur Erschöpfung.
A13: 4 | B13: Meine Arbeit soll stets ohne Fehl und Tadel sein.
A14: 5 | B14: Zum Feierabend ist die Arbeit für mich vergessen.
A15: 6 | B15: Wenn ich keinen Erfolg habe, resigniere ich schnell.
A16: 7 | B16: Für mich sind Schwierigkeiten dazu da, dass ich sie überwinde.
A17: 8 | B17: Mich bringt so leicht nichts aus der Ruhe.
A18: 9 | B18: Mein bisheriges Berufsleben war recht erfolgreich.
A19: 10 | B19: Mit meinem bisherigen Leben kann ich zufrieden sein.
A20: 11 | B20: Mein Partner/meine Partnerin zeigt Verständnis für meine Arbeit.
A21: 12 | B21: Die Arbeit ist mein ein und alles.
A22: 13 | B22: Berufliche Karriere bedeutet mir wenig.
A23: 14 | B23: Bei der Arbeit kenne ich keine Schonung.
A24: 15 | B24: Ich kontrolliere lieber noch dreimal nach, als dass ich fehlerhafte Arbeitsergebnisse abliefere.
A25: 16 | B25: Auch in der Freizeit beschäftigen mich viele Arbeitsprobleme.
A26: 17 | B26: Misserfolge kann ich nur schwer verkraften.
A27: 18 | B27: Wenn mir etwas nicht gelingt, sage ich mir: „Jetzt erst recht“!
A28: 19 | B28: Ich bin ein ruheloser Mensch.
A29: 20 | B29: In meiner bisherigen Berufslaufbahn habe ich mehr Erfolge als Enttäuschungen erlebt.
A30: 21 | B30: Im Großen und Ganzen bin ich glücklich und zufrieden.
A31: 22 | B31: Meine Familie interessiert sich nur wenig für meine Arbeitsprobleme.
A32: 23 | B32: Ich könnte auch ohne meine Arbeit ganz glücklich sein.
A33: 24 | B33: Was meine berufliche Entwicklung angeht, so halte ich mich für ziemlich ehrgeizig.
A34: 25 | B34: Ich arbeite wohl mehr als ich sollte.
A35: 26 | B35: Bei meiner Arbeit habe ich den Ehrgeiz, keinerlei Fehler zu machen.
A36: 27 | B36: Nach der Arbeit kann ich ohne Probleme abschalten.
A37: 28 | B37: Berufliche Fehlschläge können mich leicht entmutigen.
A38: 29 | B38: Misserfolge werfen mich nicht um, sondern veranlassen mich zu noch stärkerer Anstrengung.
A39: 30 | B39: Ich glaube, dass ich ziemlich hektisch bin.
A40: 31 | B40: Wirkliche berufliche Erfolge sind mir bisher versagt geblieben.
A41: 32 | B41: Ich habe allen Grund, meine Zukunft optimistisch zu sehen.
A42: 33 | B42: Von meinem Partner/meiner Partnerin wünschte ich mir mehr Rücksichtnahme auf meine beruflichen Aufgaben und Probleme.
A43: 34 | B43: Ich brauche die Arbeit wie die Luft zum Atmen.
A44: 35 | B44: Ich strebe nach höheren beruflichen Zielen als die meisten anderen.
A45: 36 | B45: Ich neige dazu, über meine Kräfte hinaus zu arbeiten.
A46: 37 | B46: Was immer ich tue, es muss perfekt sein.
A47: 38 | B47: Feierabend ist Feierabend, da verschwende ich keine Gedanken mehr an die Arbeit.
A48: 39 | B48: Wenn ich in der Arbeit erfolglos bin, deprimiert mich das sehr.
A49: 40 | B49: Ich bin mir sicher, dass ich auch die künftigen Anforderungen des Lebens gut bewältigen kann.
A50: 41 | B50: Ich glaube, ich bin ein ruhender Pol in meinem Umfeld.
A51: 42 | B51: In meiner beruflichen Entwicklung ist mir bisher fast alles gelungen.
A52: 43 | B52: Ich kann mich über mein Leben in keiner Weise beklagen.
A53: 44 | B53: Bei meiner Familie finde ich jede Unterstützung.
A54: 45 | B54: Ich wüsste nicht, wie ich ohne Arbeit leben sollte.
A55: 46 | B55: Für meine berufliche Zukunft habe ich mir viel vorgenommen.
A56: 47 | B56: Mein Tagesablauf ist durch chronischen Zeitmangel bestimmt.
A57: 48 | B57: Für mich ist die Arbeit erst dann getan, wenn ich rundum mit dem Ergebnis zufrieden bin.
A58: 49 | B58: Arbeitsprobleme beschäftigen mich eigentlich den ganzen Tag.
A59: 50 | B59: Ich verliere leicht den Mut, wenn ich trotz Anstrengung keinen Erfolg habe.
A60: 51 | B60: Ein Misserfolg kann bei mir neue Kräfte wecken.
A61: 52 | B61: Ich kann mich in fast allen Situationen ruhig und bedächtig verhalten.
A62: 53 | B62: Mein bisheriges Leben ist durch beruflichen Erfolg gekennzeichnet.
A63: 54 | B63: Von manchen Seiten des Lebens bin ich ziemlich enttäuscht.
A64: 55 | B64: Manchmal wünschte ich mir mehr Unterstützung durch die Menschen meiner Umgebung.
A65: 56 | B65: Es gibt Wichtigeres im Leben als die Arbeit.
A66: 57 | B66: Beruflicher Erfolg ist für mich ein wichtiges Lebensziel.
A67: 58 | B67: In der Arbeit verausgabe ich mich stark.
A68: 59 | B68: Es widerstrebt mir, wenn ich eine Arbeit abschließen muss, obwohl sie noch verbessert werden könnte.
A69: 60 | B69: Meine Gedanken kreisen fast nur um die Arbeit.
A70: 61 | B70: Wenn ich irgendwo versagt habe, kann mich das ziemlich mutlos machen.
A71: 62 | B71: Wenn mir etwas nicht gelingt, bleibe ich hartnäckig und strenge mich um so mehr an.
A72: 63 | B72: Hektik und Aufregung um mich herum lassen mich kalt.
A73: 64 | B73: Meine beruflichen Leistungen können sich sehen lassen.
A74: 65 | B74: Es dürfte nur wenige glücklichere Menschen geben als ich es bin.
A75: 66 | B75: Wenn ich mal Rat und Hilfe brauche, ist immer jemand da.

Sheet Ergebnis
A1: Auswertung AVEM | C1: Norm: | D1: Gesamt | F1: Vergleichsprofil: | G1: Muster G
A3: Name: | F3: Datum:
E5: Profil | F5: =INDIRECT($N$6&ROW()+6) -> Muster G
B6: =B32 -> Erleben sozialer Unterstützung | D6: 0.5 | E6: =D32 ->  | F6: =INDIRECT($N$6&24-ROW()+4) -> 6 | L6: Muster G | M6: L | N6: =VLOOKUP(G1,L6:M47,2,FALSE) -> L
B7: =B31 -> Lebenszufriedenheit | D7: 1.5 | E7: =D31 ->  | F7: =INDIRECT($N$6&24-ROW()+4) -> 7 | L7: Muster S | M7: M
B8: =B30 -> Erfolgserleben im Beruf | D8: 2.5 | E8: =D30 ->  | F8: 7 | L8: Risiko A | M8: N
B9: =B29 -> Innere Ruhe/Ausgeglichenheit | D9: 3.5 | E9: =D29 ->  | F9: 7 | L9: Risiko B | M9: O
B10: =B28 -> Offensive Problembewältigung | D10: 4.5 | E10: =D28 ->  | F10: 7
B11: =B27 -> Resignationstendenz (bei Misserfolg) | D11: 5.5 | E11: =D27 ->  | F11: 3 | L11: Muster G | M11: Muster S | N11: Risiko A | O11: Risiko B
B12: =B26 -> Distanzierungsfähigkeit | D12: 6.5 | E12: =D26 ->  | F12: 6 | L12: 6 | M12: 2 | N12: 8 | O12: 3
B13: =B25 -> Perfektionsstreben | D13: 7.5 | E13: =D25 ->  | F13: 6 | L13: 8 | M13: 2 | N13: 6 | O13: 3
B14: =B24 -> Verausgabungsbereitschaft | D14: 8.5 | E14: =D24 ->  | F14: 5 | L14: 5 | M14: 2 | N14: 8 | O14: 5
B15: =B23 -> Beruflicher Ehrgeiz | D15: 9.5 | E15: =D23 ->  | F15: 8 | L15: 6 | M15: 3 | N15: 7 | O15: 4
B16: =B22 -> Subjektive Bedeutung der Arbeit | D16: 10.5 | E16: =D22 ->  | F16: 6 | L16: 6 | M16: 8 | N16: 2 | O16: 4
L17: 3 | M17: 4 | N17: 6 | O17: 7
L18: 7 | M18: 4 | N18: 6 | O18: 2
L19: 7 | M19: 6 | N19: 3 | O19: 3
L20: 7 | M20: 4 | N20: 6 | O20: 2
A21: Skala | B21: Beschreibung | C21: Rohwerte | D21: Stanine | L21: 7 | M21: 6 | N21: 4 | O21: 2
A22: 1 | B22: Subjektive Bedeutung der Arbeit | C22: =Berechnung!K2 -> 36 | D22: =VLOOKUP(C22,INDIRECT("Norm_"&$D$1&"!$A$2:$L$31"),2,FALSE) ->  | E22: =IF(Berechnung!J2>1,"*","") -> * | L22: 6 | M22: 5 | N22: 4 | O22: 4
A23: 2 | B23: Beruflicher Ehrgeiz | C23: =Berechnung!K3 -> 36 | D23: =VLOOKUP(C23,INDIRECT("Norm_"&$D$1&"!$A$2:$L$31"),3,FALSE) ->  | E23: =IF(Berechnung!J3>1,"*","") -> *
A24: 3 | B24: Verausgabungsbereitschaft | C24: =Berechnung!K4 ->  | D24: =VLOOKUP(C24,INDIRECT("Norm_"&$D$1&"!$A$2:$L$31"),4,FALSE) ->  | E24: =IF(Berechnung!J4>1,"*","") -> * | G24: =IF(ISERROR(Berechnung!J17),"",Berechnung!J17) -> 
A25: 4 | B25: Perfektionsstreben | C25: =Berechnung!K5 ->  | D25: =VLOOKUP(C25,INDIRECT("Norm_"&$D$1&"!$A$2:$L$31"),5,FALSE) ->  | E25: =IF(Berechnung!J5>1,"*","") -> *
A26: 5 | B26: Distanzierungsfähigkeit | C26: =Berechnung!K6 -> 36 | D26: =VLOOKUP(C26,INDIRECT("Norm_"&$D$1&"!$A$2:$L$31"),6,FALSE) ->  | E26: =IF(Berechnung!J6>1,"*","") -> *
A27: 6 | B27: Resignationstendenz (bei Misserfolg) | C27: =Berechnung!K7 ->  | D27: =VLOOKUP(C27,INDIRECT("Norm_"&$D$1&"!$A$2:$L$31"),7,FALSE) ->  | E27: =IF(Berechnung!J7>1,"*","") -> *
A28: 7 | B28: Offensive Problembewältigung | C28: =Berechnung!K8 ->  | D28: =VLOOKUP(C28,INDIRECT("Norm_"&$D$1&"!$A$2:$L$31"),8,FALSE) ->  | E28: =IF(Berechnung!J8>1,"*","") -> * | G28: =IF(ISERROR(Berechnung!J18),"",Berechnung!J18) -> 
A29: 8 | B29: Innere Ruhe/Ausgeglichenheit | C29: =Berechnung!K9 -> 36 | D29: =VLOOKUP(C29,INDIRECT("Norm_"&$D$1&"!$A$2:$L$31"),9,FALSE) ->  | E29: =IF(Berechnung!J9>1,"*","") -> *
A30: 9 | B30: Erfolgserleben im Beruf | C30: =Berechnung!K10 -> 36 | D30: =VLOOKUP(C30,INDIRECT("Norm_"&$D$1&"!$A$2:$L$31"),10,FALSE) ->  | E30: =IF(Berechnung!J10>1,"*","") -> *
A31: 10 | B31: Lebenszufriedenheit | C31: =Berechnung!K11 -> 36 | D31: =VLOOKUP(C31,INDIRECT("Norm_"&$D$1&"!$A$2:$L$31"),11,FALSE) ->  | E31: =IF(Berechnung!J11>1,"*","") -> * | G31: =IF(ISERROR(Berechnung!J19),"",Berechnung!J19) -> 6.00
A32: 11 | B32: Erleben sozialer Unterstützung | C32: =Berechnung!K12 -> 36 | D32: =VLOOKUP(C32,INDIRECT("Norm_"&$D$1&"!$A$2:$L$31"),12,FALSE) ->  | E32: =IF(Berechnung!J12>1,"*","") -> *
A34: Wahrscheinlichkeit der Zugehörigkeit zu Muster …
A35: G | B35: Gesunder Typ | D35: =Berechnung!I32 -> 0.0% | E35: =IF(D35>0.95,"← Typ (sicher)",IF(K35=TRUE(),"← Typ (tendenziell)","")) ->  | K35: =(D35=MAX($D$35:$D$38)) -> FALSE
A36: S | B36: Schonungstyp | D36: =Berechnung!I33 -> 8.5% | E36: =IF(D36>0.95,"← Typ (sicher)",IF(K36=TRUE(),"← Typ (tendenziell)","")) ->  | K36: =(D36=MAX($D$35:$D$38)) -> FALSE
A37: A | B37: Risikotyp A | D37: =Berechnung!I34 -> 0.0% | E37: =IF(D37>0.95,"← Typ (sicher)",IF(K37=TRUE(),"← Typ (tendenziell)","")) ->  | K37: =(D37=MAX($D$35:$D$38)) -> FALSE
A38: B | B38: Risikotyp Burnout | D38: =Berechnung!I35 -> 91.5% | E38: =IF(D38>0.95,"← Typ (sicher)",IF(K38=TRUE(),"← Typ (tendenziell)","")) -> ← Typ (tendenziell) | K38: =(D38=MAX($D$35:$D$38)) -> TRUE
A40: =IF(Berechnung!J13>1,"*Vorsicht: Zu viele fehlende Antwortwerte. Ergebnis ungenau.","") -> *Vorsicht: Zu viele fehlende Antwortwerte. Ergebnis ungenau.

Sheet Berechnung (hidden)
A1: Item | B1: Skala | C1: Label | D1: Roh | E1: Invertiert | G1: Subskalen | H1: Label | I1: Rohsumme | J1: #Missing | K1: Rohsumme (kor_missing) | L1: Rohsumme (kor_faktor) | M1: Mittelwert | N1: Faktor_F1G | O1: Faktor_F2S | P1: Faktor_F3A | Q1: Faktor_F4B
A2: a1 | B2: BA | C2: Arbeit ist das wichtigste | D2: =Fragebogen!C10 -> 0 | E2: =D2 -> 0 | G2: BA | H2: Subjektive Bedeutsamkeit der Arbeit | I2: =SUMIF(B:B,G2,E:E) -> 12 | J2: =COUNTIFS(B:B,G:G,E:E,0) -> 4 | K2: =I2+J2*I2/(6-J2) -> 36 | L2: =ROUND(K2+K2/5,0) -> 43 | M2: =I2/6 -> 2.00 | N2: 0.8829105 | O2: 0.6527669 | P2: 1.0628081 | Q2: 0.7244985
A3: a2 | B3: BE | C3: berufl. weiter kommen | D3: =Fragebogen!C11 -> 0 | E3: =D3 -> 0 | G3: BE | H3: Beruflicher Ehrgeiz | I3: =SUMIF(B:B,G3,E:E) -> 6 | J3: 5 | K3: =I3+J3*I3/(6-J3) -> 36 | L3: =ROUND(K3+K3/5,0) -> 43 | M3: =I3/6 -> 1.00 | N3: 0.899768 | O3: 0.5766246 | P3: 0.7691347 | Q3: 0.5642684
A4: a3 | B4: VB | C4: bis zur Erschöpfung | D4: =Fragebogen!C12 -> 0 | E4: 0 | G4: VB | H4: Verausgabungsbereitschaft | I4: 0 | J4: 6 | M4: 0.00 | N4: 1.7206287 | O4: 1.5457596 | P4: 1.8276074 | Q4: 1.6462504
A5: a4 | B5: PS | C5: ohne Fehl & Tadel | D5: =Fragebogen!C13 -> 0 | E5: 0 | G5: PS | H5: Perfektionsstreben | I5: 0 | J5: 6 | M5: 0.00 | N5: 0.2611766 | O5: 0.0280928 | P5: 0.2562368 | Q5: 0.1131392
A6: a5 | B6: DF | C6: abends Arb. vergessen | D6: =Fragebogen!C14 -> 0 | E6: 0 | G6: DF | H6: Distanzierungsfähigkeit | I6: 18 | J6: 3 | K6: 36 | L6: 43 | M6: 3.00 | N6: 2.0886436 | O6: 2.1809104 | P6: 1.8300581 | Q6: 1.8459468
A7: a6 | B7: RT | C7: resigniere schnell | D7: =Fragebogen!C15 -> 0 | E7: 0 | G7: RT | H7: Resignationstendenz bei Misserfolg | I7: =SUMIF(B:B,G7,E:E) -> 0 | J7: 6 | M7: 0.00 | N7: 1.785961 | O7: 1.8451816 | P7: 1.9828937 | Q7: 2.1427534
A8: a7 | B8: OP | C8: Schwierigk. überwinden | D8: =Fragebogen!C16 -> 0 | E8: 0 | G8: OP | H8: Offensive Problembewältigung | I8: 0 | J8: 6 | M8: 0.00 | N8: 2.0141628 | O8: 1.8521138 | P8: 1.8671741 | Q8: 1.7500042
A9: a8 | B9: IR | C9: nichts aus der Ruhe | D9: =Fragebogen!C17 -> 0 | E9: 0 | G9: IR | H9: Innere Ruhe | I9: 12 | J9: 4 | K9: 36 | L9: 43 | M9: 2.00 | N9: 1.8011405 | O9: 1.7199908 | P9: 1.5672988 | Q9: 1.489434
A10: a9 | B10: EE | C10: bisher erfolgreich | D10: =Fragebogen!C18 -> 0 | E10: 0 | G10: EE | H10: Erfolgserleben im Beruf | I10: 6 | J10: 5 | K10: 36 | L10: 43 | M10: 1.00 | N10: 1.4737421 | O10: 1.3715621 | P10: 1.3629123 | Q10: 1.2114638
A11: a10 | B11: LZ | C11: bisher zufrieden | D11: =Fragebogen!C19 -> 0 | E11: 0 | G11: LZ | H11: Lebenszufriedenheit | I11: 6 | J11: 5 | K11: 36 | L11: 43 | M11: 1.00 | N11: 0.8523736 | O11: 0.7799424 | P11: 0.6646026 | Q11: 0.5007182
A12: a11 | B12: SU | C12: P zeigt Verständnis | D12: =Fragebogen!C20 -> 0 | E12: 0 | G12: SU | H12: Erleben sozialer Unterstützung | I12: 18 | J12: 3 | K12: 36 | L12: 43 | M12: 3.00 | N12: 1.5032522 | O12: 1.3907718 | P12: 1.2789864 | Q12: 1.2705118
A13: a12 | B13: BA | C13: Arb. ist ein & alles | D13: =Fragebogen!C21 -> 0 | E13: 0 | I13: Missing: | J13: =MAX(J2:J12) -> 6 | L13: Residuum: | M13: =1/6 -> 0.1666666667 | N13: -164.0540478 | O13: -136.8233428 | P13: -145.4446699 | Q13: -121.6387806
A14: a13 | B14: BE | C14: Karriere ist unwichtig | D14: =Fragebogen!C22 -> 0 | E14: =6-D14 -> 6
A15: a14 | B15: VB | C15: kenne keine Schonung | D15: =Fragebogen!C23 -> 0 | E15: 0
A16: a15 | B16: PS | C16: kontrolliere nochmals | D16: =Fragebogen!C24 -> 0 | E16: 0 | G16: Sekundärfaktoren | H16: Label | I16: Wert | J16: Mittelwert
A17: a16 | B17: DF | C17: Arb.-probl. beschäftigen immer | D17: =Fragebogen!C25 -> 0 | E17: =6-D17 -> 6 | G17: SF1 | H17: Arbeitsengagement | I17: =SUM(K2:K6) ->  | J17: =I17/5/6 -> 
A18: a17 | B18: RT | C18: Mißerfolg schwer verkraften | D18: =Fragebogen!C26 -> 0 | E18: 0 | G18: SF2 | H18: Widerstandsfähigkeit gegen Belastung | I18: =SUM(K7:K9) ->  | J18: =I18/3/6 -> 
A19: a18 | B19: OP | C19: wenn etwas nicht gelingt: erst recht | D19: =Fragebogen!C27 -> 0 | E19: 0 | G19: SF3 | H19: Berufsbegleitende Emotionen | I19: =SUM(K10:K12) -> 108.00 | J19: =I19/3/6 -> 6.00 | L19: Hinweis: Der Korrekturfaktor für fehlende
A20: a19 | B20: IR | C20: ruheloser | D20: =Fragebogen!C28 -> 0 | E20: =6-D20 -> 6 | L20: Werte ist nicht implementiert!
A21: a20 | B21: EE | C21: eher erfolgreich | D21: =Fragebogen!C29 -> 0 | E21: 0
A22: a21 | B22: LZ | C22: glücklich & zufrieden | D22: =Fragebogen!C30 -> 0 | E22: 0
A23: a22 | B23: SU | C23: Fam. interessiert sich wenig | D23: =Fragebogen!C31 -> 0 | E23: =6-D23 -> 6 | G23: Diskr.-Fkt | H23: Label | I23: Wert
A24: a23 | B24: BA | C24: auch ohne Arb. glücklich | D24: =Fragebogen!C32 -> 0 | E24: =6-D24 -> 6 | G24: F1G | H24: Gesundheitstyp | I24: =SUMPRODUCT(6*$M$2:$M$13,$N$2:$N$13) -> -47.8360
A25: a24 | B25: BE | C25: bin ehrgeizig | D25: =Fragebogen!C33 -> 0 | E25: 0 | G25: F2S | H25: Schon-Typ | I25: =SUMPRODUCT(6*$M$2:$M$13,$O$2:$O$13) -> -27.6912
A26: a25 | B26: VB | C26: arbeite mehr als ich sollte | D26: =Fragebogen!C34 -> 0 | E26: 0 | G26: F3A | H26: A-Typ | I26: =SUMPRODUCT(6*$M$2:$M$13,$P$2:$P$13) -> -41.1407
A27: a26 | B27: PS | C27: will keine Fehler machen | D27: =Fragebogen!C35 -> 0 | E27: 0 | G27: F4B | H27: Burnout-Typ | I27: =SUMPRODUCT(6*$M$2:$M$13,$Q$2:$Q$13) -> -25.3166
A28: a27 | B28: DF | C28: kann gut abschalten | D28: =Fragebogen!C36 -> 0 | E28: 0
A29: a28 | B29: RT | C29: Fehlschläge entmutigen mich | D29: =Fragebogen!C37 -> 0 | E29: 0
A30: a29 | B30: OP | C30: Mißerfolge werfen mich nicht um | D30: =Fragebogen!C38 -> 0 | E30: 0
A31: a30 | B31: IR | C31: bin hektisch | D31: =Fragebogen!C39 -> 0 | E31: =6-D31 -> 6 | G31: W'keit | H31: Label | I31: Wert
A32: a31 | B32: EE | C32: Erfolg bisher versagt geblieben | D32: =Fragebogen!C40 -> 0 | E32: =6-D32 -> 6 | G32: P1G | H32: W'keit Gruppe G | I32: =1/(EXP(I24-I24)+EXP(I25-I24)+EXP(I26-I24)+EXP(I27-I24)) -> 0.0000
A33: a32 | B33: LZ | C33: Zukunft optimistisch | D33: =Fragebogen!C41 -> 0 | E33: 0 | G33: P2S | H33: W'keit Gruppe S | I33: =1/(EXP(I24-I25)+EXP(I25-I25)+EXP(I26-I25)+EXP(I27-I25)) -> 0.0851
A34: a33 | B34: SU | C34: von P wünsche mehr Rücksicht | D34: =Fragebogen!C42 -> 0 | E34: =6-D34 -> 6 | G34: P3A | H34: W'keit Gruppe A | I34: =1/(EXP(I24-I26)+EXP(I25-I26)+EXP(I26-I26)+EXP(I27-I26)) -> 0.0000
A35: a34 | B35: BA | C35: brauche Arb. wie Luft zum Atmen | D35: =Fragebogen!C43 -> 0 | E35: 0 | G35: P4B | H35: W'keit Gruppe B | I35: =1/(EXP(I24-I27)+EXP(I25-I27)+EXP(I26-I27)+EXP(I27-I27)) -> 0.9149
A36: a35 | B36: BE | C36: strebe nach höheren Zielen | D36: =Fragebogen!C44 -> 0 | E36: 0
A37: a36 | B37: VB | C37: arbeite über meine Kräfte | D37: =Fragebogen!C45 -> 0 | E37: 0
A38: a37 | B38: PS | C38: es muß perfekt sein | D38: =Fragebogen!C46 -> 0 | E38: 0
A39: a38 | B39: DF | C39: Feierabend ist Feierabend | D39: =Fragebogen!C47 -> 0 | E39: 0
A40: a39 | B40: RT | C40: erfolglos, deprimiert mich | D40: =Fragebogen!C48 -> 0 | E40: 0
A41: a40 | B41: OP | C41: künftige Anforderungen gut bewältigen | D41: =Fragebogen!C49 -> 0 | E41: 0
A42: a41 | B42: IR | C42: bin ein ruhender Pol | D42: =Fragebogen!C50 -> 0 | E42: 0
A43: a42 | B43: EE | C43: mir ist fast alles gelungen | D43: =Fragebogen!C51 -> 0 | E43: 0
A44: a43 | B44: LZ | C44: kann mich nicht beklagen | D44: =Fragebogen!C52 -> 0 | E44: 0
A45: a44 | B45: SU | C45: Fam. unterstützt mich | D45: =Fragebogen!C53 -> 0 | E45: 0
A46: a45 | B46: BA | C46: ohne Arb. kann ich nicht leben | D46: =Fragebogen!C54 -> 0 | E46: 0
A47: a46 | B47: BE | C47: für die Zukunft viel vorgenommen | D47: =Fragebogen!C55 -> 0 | E47: 0
A48: a47 | B48: VB | C48: immer Zeitmangel | D48: =Fragebogen!C56 -> 0 | E48: 0
A49: a48 | B49: PS | C49: Arb. erst getan, wenn rundum alles ok | D49: =Fragebogen!C57 -> 0 | E49: 0
A50: a49 | B50: DF | C50: Arb.-probl. beschäftigen immer | D50: =Fragebogen!C58 -> 0 | E50: =6-D50 -> 6
A51: a50 | B51: RT | C51: verliere leicht den Mut.. | D51: =Fragebogen!C59 -> 0 | E51: 0
A52: a51 | B52: OP | C52: Mißerfolg weckt neue Kräfte | D52: =Fragebogen!C60 -> 0 | E52: 0
A53: a52 | B53: IR | C53: ruhig und bedächtig | D53: =Fragebogen!C61 -> 0 | E53: 0
A54: a53 | B54: EE | C54: bisher erfolgreich | D54: =Fragebogen!C62 -> 0 | E54: 0
A55: a54 | B55: LZ | C55: bin ziemlich enttäuscht | D55: =Fragebogen!C63 -> 0 | E55: =6-D55 -> 6
A56: a55 | B56: SU | C56: wünschte mir mehr Unterstützung | D56: =Fragebogen!C64 -> 0 | E56: =6-D56 -> 6
A57: a56 | B57: BA | C57: Arbeit ist nicht das Wichtigste | D57: =Fragebogen!C65 -> 0 | E57: =6-D57 -> 6
A58: a57 | B58: BE | C58: ist für mich wichtig | D58: =Fragebogen!C66 -> 0 | E58: 0
A59: a58 | B59: VB | C59: ich verausgabe mich stark | D59: =Fragebogen!C67 -> 0 | E59: 0
A60: a59 | B60: PS | C60: Arb. abschließen müssen, wenn noch verbesserbar | D60: =Fragebogen!C68 -> 0 | E60: 0
A61: a60 | B61: DF | C61: Gedanken kreisen nur um Arb. | D61: =Fragebogen!C69 -> 0 | E61: =6-D61 -> 6
A62: a61 | B62: RT | C62: versagen macht mich mutlos | D62: =Fragebogen!C70 -> 0 | E62: 0
A63: a62 | B63: OP | C63: hartnäckig & strenge mich an | D63: =Fragebogen!C71 -> 0 | E63: 0
A64: a63 | B64: IR | C64: Hektik läßt mich kalt | D64: =Fragebogen!C72 -> 0 | E64: 0
A65: a64 | B65: EE | C65: meine Leistungen können sich sehen lassen | D65: =Fragebogen!C73 -> 0 | E65: 0
A66: a65 | B66: LZ | C66: glücklicher Mensch | D66: =Fragebogen!C74 -> 0 | E66: 0
A67: a66 | B67: SU | C67: es ist immer jemand da. | D67: =Fragebogen!C75 -> 0 | E67: =D67 -> 0

Sheet Norm_Gesamt (hidden)
B1: Subjektive Bedeutung der Arbeit | C1: Beruflicher Ehrgeiz | D1: Verausgabungsbereitschaft | E1: Perfektionsstreben | F1: Distanzierungsfähigkeit | G1: Resignationstendenz (bei Misserfolg) | H1: Offensive Problembewältigung | I1: Innere Ruhe/Ausgeglichenheit | J1: Erfolgserleben im Beruf | K1: Lebenszufriedenheit | L1: Erleben sozialer Unterstützung
A2: 1 | B2: 1 | C2: 1 | D2: 1 | E2: 1 | F2: 1 | G2: 1 | H2: 1 | I2: 1 | J2: 1 | K2: 1 | L2: 1
A3: 2 | B3: 1 | C3: 1 | D3: 1 | E3: 1 | F3: 1 | G3: 1 | H3: 1 | I3: 1 | J3: 1 | K3: 1 | L3: 1
A4: 3 | B4: 1 | C4: 1 | D4: 1 | E4: 1 | F4: 1 | G4: 1 | H4: 1 | I4: 1 | J4: 1 | K4: 1 | L4: 1
A5: 4 | B5: 1 | C5: 1 | D5: 1 | E5: 1 | F5: 1 | G5: 1 | H5: 1 | I5: 1 | J5: 1 | K5: 1 | L5: 1
A6: 5 | B6: 1 | C6: 1 | D6: 1 | E6: 1 | F6: 1 | G6: 1 | H6: 1 | I6: 1 | J6: 1 | K6: 1 | L6: 1
A7: 6 | B7: 1 | C7: 1 | D7: 1 | E7: 1 | F7: 1 | G7: 1 | H7: 1 | I7: 1 | J7: 1 | K7: 1 | L7: 1
A8: 7 | B8: 1 | C8: 1 | D8: 1 | E8: 1 | F8: 1 | G8: 1 | H8: 1 | I8: 1 | J8: 1 | K8: 1 | L8: 1
A9: 8 | B9: 2 | C9: 1 | D9: 1 | E9: 1 | F9: 1 | G9: 2 | H9: 1 | I9: 1 | J9: 1 | K9: 1 | L9: 1
A10: 9 | B10: 2 | C10: 1 | D10: 1 | E10: 1 | F10: 2 | G10: 2 | H10: 1 | I10: 1 | J10: 1 | K10: 1 | L10: 1
A11: 10 | B11: 2 | C11: 2 | D11: 1 | E11: 1 | F11: 2 | G11: 2 | H11: 1 | I11: 1 | J11: 1 | K11: 1 | L11: 1
A12: 11 | B12: 3 | C12: 2 | D12: 1 | E12: 1 | F12: 3 | G12: 3 | H12: 1 | I12: 1 | J12: 1 | K12: 1 | L12: 1
A13: 12 | B13: 3 | C13: 2 | D13: 2 | E13: 1 | F13: 3 | G13: 3 | H13: 1 | I13: 1 | J13: 1 | K13: 1 | L13: 1
A14: 13 | B14: 4 | C14: 3 | D14: 2 | E14: 1 | F14: 3 | G14: 4 | H14: 1 | I14: 2 | J14: 1 | K14: 1 | L14: 1
A15: 14 | B15: 4 | C15: 3 | D15: 3 | E15: 1 | F15: 4 | G15: 4 | H15: 1 | I15: 2 | J15: 1 | K15: 1 | L15: 1
A16: 15 | B16: 4 | C16: 4 | D16: 3 | E16: 2 | F16: 4 | G16: 5 | H16: 1 | I16: 3 | J16: 2 | K16: 2 | L16: 2
A17: 16 | B17: 5 | C17: 4 | D17: 4 | E17: 2 | F17: 4 | G17: 5 | H17: 2 | I17: 3 | J17: 2 | K17: 2 | L17: 2
A18: 17 | B18: 5 | C18: 5 | D18: 4 | E18: 2 | F18: 5 | G18: 6 | H18: 2 | I18: 4 | J18: 2 | K18: 3 | L18: 2
A19: 18 | B19: 6 | C19: 5 | D19: 5 | E19: 3 | F19: 5 | G19: 6 | H19: 3 | I19: 4 | J19: 3 | K19: 3 | L19: 3
A20: 19 | B20: 6 | C20: 5 | D20: 5 | E20: 3 | F20: 5 | G20: 7 | H20: 3 | I20: 4 | J20: 3 | K20: 4 | L20: 3
A21: 20 | B21: 7 | C21: 6 | D21: 5 | E21: 4 | F21: 6 | G21: 7 | H21: 4 | I21: 5 | J21: 4 | K21: 4 | L21: 4
A22: 21 | B22: 7 | C22: 6 | D22: 6 | E22: 4 | F22: 6 | G22: 8 | H22: 4 | I22: 5 | J22: 4 | K22: 5 | L22: 4
A23: 22 | B23: 7 | C23: 6 | D23: 6 | E23: 5 | F23: 7 | G23: 8 | H23: 5 | I23: 6 | J23: 5 | K23: 5 | L23: 5
A24: 23 | B24: 8 | C24: 7 | D24: 7 | E24: 5 | F24: 7 | G24: 8 | H24: 5 | I24: 6 | J24: 5 | K24: 6 | L24: 5
A25: 24 | B25: 8 | C25: 7 | D25: 7 | E25: 6 | F25: 8 | G25: 9 | H25: 6 | I25: 7 | J25: 6 | K25: 6 | L25: 5
A26: 25 | B26: 9 | C26: 8 | D26: 8 | E26: 6 | F26: 8 | G26: 9 | H26: 7 | I26: 7 | J26: 6 | K26: 7 | L26: 6
A27: 26 | B27: 9 | C27: 8 | D27: 8 | E27: 7 | F27: 8 | G27: 9 | H27: 7 | I27: 8 | J27: 7 | K27: 7 | L27: 6
A28: 27 | B28: 9 | C28: 8 | D28: 8 | E28: 7 | F28: 9 | G28: 9 | H28: 8 | I28: 8 | J28: 8 | K28: 8 | L28: 7
A29: 28 | B29: 9 | C29: 9 | D29: 9 | E29: 8 | F29: 9 | G29: 9 | H29: 8 | I29: 9 | J29: 8 | K29: 8 | L29: 7
A30: 29 | B30: 9 | C30: 9 | D30: 9 | E30: 8 | F30: 9 | G30: 9 | H30: 9 | I30: 9 | J30: 9 | K30: 9 | L30: 8
A31: 30 | B31: 9 | C31: 9 | D31: 9 | E31: 9 | F31: 9 | G31: 9 | H31: 9 | I31: 9 | J31: 9 | K31: 9 | L31: 9

Sheet Norm_Männer (hidden)
B1: Subjektive Bedeutung der Arbeit | C1: Beruflicher Ehrgeiz | D1: Verausgabungsbereitschaft | E1: Perfektionsstreben | F1: Distanzierungsfähigkeit | G1: Resignationstendenz (bei Misserfolg) | H1: Offensive Problembewältigung | I1: Innere Ruhe/Ausgeglichenheit | J1: Erfolgserleben im Beruf | K1: Lebenszufriedenheit | L1: Erleben sozialer Unterstützung
A2: 1 | B2: 1 | C2: 1 | D2: 1 | E2: 1 | F2: 1 | G2: 1 | H2: 1 | I2: 1 | J2: 1 | K2: 1 | L2: 1
A3: 2 | B3: 1 | C3: 1 | D3: 1 | E3: 1 | F3: 1 | G3: 1 | H3: 1 | I3: 1 | J3: 1 | K3: 1 | L3: 1
A4: 3 | B4: 1 | C4: 1 | D4: 1 | E4: 1 | F4: 1 | G4: 1 | H4: 1 | I4: 1 | J4: 1 | K4: 1 | L4: 1
A5: 4 | B5: 1 | C5: 1 | D5: 1 | E5: 1 | F5: 1 | G5: 1 | H5: 1 | I5: 1 | J5: 1 | K5: 1 | L5: 1
A6: 5 | B6: 1 | C6: 1 | D6: 1 | E6: 1 | F6: 1 | G6: 1 | H6: 1 | I6: 1 | J6: 1 | K6: 1 | L6: 1
A7: 6 | B7: 1 | C7: 1 | D7: 1 | E7: 1 | F7: 1 | G7: 1 | H7: 1 | I7: 1 | J7: 1 | K7: 1 | L7: 1
A8: 7 | B8: 1 | C8: 1 | D8: 1 | E8: 1 | F8: 1 | G8: 1 | H8: 1 | I8: 1 | J8: 1 | K8: 1 | L8: 1
A9: 8 | B9: 2 | C9: 1 | D9: 1 | E9: 1 | F9: 1 | G9: 2 | H9: 1 | I9: 1 | J9: 1 | K9: 1 | L9: 1
A10: 9 | B10: 2 | C10: 1 | D10: 1 | E10: 1 | F10: 2 | G10: 2 | H10: 1 | I10: 1 | J10: 1 | K10: 1 | L10: 1
A11: 10 | B11: 3 | C11: 1 | D11: 1 | E11: 1 | F11: 2 | G11: 3 | H11: 1 | I11: 1 | J11: 1 | K11: 1 | L11: 1
A12: 11 | B12: 3 | C12: 2 | D12: 1 | E12: 1 | F12: 3 | G12: 3 | H12: 1 | I12: 1 | J12: 1 | K12: 1 | L12: 1
A13: 12 | B13: 3 | C13: 2 | D13: 2 | E13: 1 | F13: 3 | G13: 4 | H13: 1 | I13: 1 | J13: 1 | K13: 1 | L13: 1
A14: 13 | B14: 4 | C14: 3 | D14: 2 | E14: 1 | F14: 3 | G14: 4 | H14: 1 | I14: 2 | J14: 1 | K14: 1 | L14: 1
A15: 14 | B15: 4 | C15: 3 | D15: 3 | E15: 1 | F15: 3 | G15: 5 | H15: 1 | I15: 2 | J15: 1 | K15: 2 | L15: 1
A16: 15 | B16: 5 | C16: 3 | D16: 3 | E16: 2 | F16: 4 | G16: 5 | H16: 1 | I16: 2 | J16: 2 | K16: 2 | L16: 2
A17: 16 | B17: 5 | C17: 4 | D17: 4 | E17: 2 | F17: 4 | G17: 6 | H17: 1 | I17: 3 | J17: 2 | K17: 2 | L17: 2
A18: 17 | B18: 5 | C18: 4 | D18: 4 | E18: 2 | F18: 4 | G18: 6 | H18: 2 | I18: 3 | J18: 3 | K18: 3 | L18: 2
A19: 18 | B19: 6 | C19: 5 | D19: 5 | E19: 3 | F19: 5 | G19: 7 | H19: 2 | I19: 4 | J19: 3 | K19: 3 | L19: 3
A20: 19 | B20: 6 | C20: 5 | D20: 5 | E20: 3 | F20: 5 | G20: 7 | H20: 3 | I20: 4 | J20: 4 | K20: 4 | L20: 3
A21: 20 | B21: 7 | C21: 5 | D21: 5 | E21: 4 | F21: 6 | G21: 8 | H21: 4 | I21: 5 | J21: 4 | K21: 4 | L21: 4
A22: 21 | B22: 7 | C22: 6 | D22: 6 | E22: 4 | F22: 6 | G22: 8 | H22: 4 | I22: 5 | J22: 4 | K22: 5 | L22: 4
A23: 22 | B23: 7 | C23: 6 | D23: 6 | E23: 5 | F23: 6 | G23: 8 | H23: 5 | I23: 6 | J23: 5 | K23: 5 | L23: 5
A24: 23 | B24: 8 | C24: 6 | D24: 7 | E24: 5 | F24: 7 | G24: 9 | H24: 5 | I24: 6 | J24: 5 | K24: 6 | L24: 5
A25: 24 | B25: 8 | C25: 7 | D25: 7 | E25: 6 | F25: 7 | G25: 9 | H25: 6 | I25: 7 | J25: 6 | K25: 6 | L25: 6
A26: 25 | B26: 8 | C26: 7 | D26: 8 | E26: 6 | F26: 8 | G26: 9 | H26: 7 | I26: 7 | J26: 7 | K26: 7 | L26: 6
A27: 26 | B27: 9 | C27: 8 | D27: 8 | E27: 7 | F27: 8 | G27: 9 | H27: 7 | I27: 8 | J27: 7 | K27: 7 | L27: 7
A28: 27 | B28: 9 | C28: 8 | D28: 8 | E28: 7 | F28: 9 | G28: 9 | H28: 8 | I28: 8 | J28: 8 | K28: 8 | L28: 7
A29: 28 | B29: 9 | C29: 9 | D29: 9 | E29: 8 | F29: 9 | G29: 9 | H29: 8 | I29: 9 | J29: 8 | K29: 8 | L29: 8
A30: 29 | B30: 9 | C30: 9 | D30: 9 | E30: 8 | F30: 9 | G30: 9 | H30: 8 | I30: 9 | J30: 9 | K30: 9 | L30: 8
A31: 30 | B31: 9 | C31: 9 | D31: 9 | E31: 9 | F31: 9 | G31: 9 | H31: 9 | I31: 9 | J31: 9 | K31: 9 | L31: 9

Sheet Norm_Frauen (hidden)
B1: Subjektive Bedeutung der Arbeit | C1: Beruflicher Ehrgeiz | D1: Verausgabungsbereitschaft | E1: Perfektionsstreben | F1: Distanzierungsfähigkeit | G1: Resignationstendenz (bei Misserfolg) | H1: Offensive Problembewältigung | I1: Innere Ruhe/Ausgeglichenheit | J1: Erfolgserleben im Beruf | K1: Lebenszufriedenheit | L1: Erleben sozialer Unterstützung
A2: 1 | B2: 1 | C2: 1 | D2: 1 | E2: 1 | F2: 1 | G2: 1 | H2: 1 | I2: 1 | J2: 1 | K2: 1 | L2: 1
A3: 2 | B3: 1 | C3: 1 | D3: 1 | E3: 1 | F3: 1 | G3: 1 | H3: 1 | I3: 1 | J3: 1 | K3: 1 | L3: 1
A4: 3 | B4: 1 | C4: 1 | D4: 1 | E4: 1 | F4: 1 | G4: 1 | H4: 1 | I4: 1 | J4: 1 | K4: 1 | L4: 1
A5: 4 | B5: 1 | C5: 1 | D5: 1 | E5: 1 | F5: 1 | G5: 1 | H5: 1 | I5: 1 | J5: 1 | K5: 1 | L5: 1
A6: 5 | B6: 1 | C6: 1 | D6: 1 | E6: 1 | F6: 1 | G6: 1 | H6: 1 | I6: 1 | J6: 1 | K6: 1 | L6: 1
A7: 6 | B7: 1 | C7: 1 | D7: 1 | E7: 1 | F7: 1 | G7: 1 | H7: 1 | I7: 1 | J7: 1 | K7: 1 | L7: 1
A8: 7 | B8: 1 | C8: 1 | D8: 1 | E8: 1 | F8: 1 | G8: 1 | H8: 1 | I8: 1 | J8: 1 | K8: 1 | L8: 1
A9: 8 | B9: 1 | C9: 1 | D9: 1 | E9: 1 | F9: 2 | G9: 1 | H9: 1 | I9: 1 | J9: 1 | K9: 1 | L9: 1
A10: 9 | B10: 2 | C10: 1 | D10: 1 | E10: 1 | F10: 2 | G10: 1 | H10: 1 | I10: 1 | J10: 1 | K10: 1 | L10: 1
A11: 10 | B11: 2 | C11: 2 | D11: 1 | E11: 1 | F11: 2 | G11: 2 | H11: 1 | I11: 1 | J11: 1 | K11: 1 | L11: 1
A12: 11 | B12: 3 | C12: 2 | D12: 1 | E12: 1 | F12: 3 | G12: 2 | H12: 1 | I12: 1 | J12: 1 | K12: 1 | L12: 1
A13: 12 | B13: 3 | C13: 3 | D13: 2 | E13: 1 | F13: 3 | G13: 3 | H13: 1 | I13: 2 | J13: 1 | K13: 1 | L13: 1
A14: 13 | B14: 3 | C14: 3 | D14: 2 | E14: 1 | F14: 3 | G14: 3 | H14: 1 | I14: 2 | J14: 1 | K14: 1 | L14: 1
A15: 14 | B15: 4 | C15: 4 | D15: 3 | E15: 1 | F15: 4 | G15: 4 | H15: 1 | I15: 3 | J15: 1 | K15: 1 | L15: 1
A16: 15 | B16: 4 | C16: 4 | D16: 3 | E16: 2 | F16: 4 | G16: 4 | H16: 1 | I16: 3 | J16: 1 | K16: 2 | L16: 2
A17: 16 | B17: 5 | C17: 4 | D17: 4 | E17: 2 | F17: 4 | G17: 5 | H17: 2 | I17: 3 | J17: 2 | K17: 2 | L17: 2
A18: 17 | B18: 5 | C18: 5 | D18: 4 | E18: 2 | F18: 5 | G18: 5 | H18: 2 | I18: 4 | J18: 2 | K18: 3 | L18: 3
A19: 18 | B19: 6 | C19: 5 | D19: 5 | E19: 3 | F19: 5 | G19: 6 | H19: 3 | I19: 4 | J19: 3 | K19: 3 | L19: 3
A20: 19 | B20: 6 | C20: 6 | D20: 5 | E20: 3 | F20: 6 | G20: 6 | H20: 3 | I20: 5 | J20: 3 | K20: 4 | L20: 3
A21: 20 | B21: 7 | C21: 6 | D21: 5 | E21: 4 | F21: 6 | G21: 7 | H21: 4 | I21: 5 | J21: 4 | K21: 4 | L21: 4
A22: 21 | B22: 7 | C22: 6 | D22: 6 | E22: 4 | F22: 7 | G22: 7 | H22: 5 | I22: 6 | J22: 4 | K22: 4 | L22: 4
A23: 22 | B23: 7 | C23: 7 | D23: 6 | E23: 5 | F23: 7 | G23: 7 | H23: 5 | I23: 6 | J23: 5 | K23: 5 | L23: 4
A24: 23 | B24: 8 | C24: 7 | D24: 7 | E24: 5 | F24: 7 | G24: 8 | H24: 6 | I24: 7 | J24: 5 | K24: 6 | L24: 5
A25: 24 | B25: 8 | C25: 8 | D25: 7 | E25: 6 | F25: 8 | G25: 8 | H25: 6 | I25: 7 | J25: 6 | K25: 6 | L25: 5
A26: 25 | B26: 9 | C26: 8 | D26: 8 | E26: 6 | F26: 8 | G26: 9 | H26: 7 | I26: 7 | J26: 6 | K26: 7 | L26: 6
A27: 26 | B27: 9 | C27: 8 | D27: 8 | E27: 7 | F27: 9 | G27: 9 | H27: 7 | I27: 8 | J27: 7 | K27: 7 | L27: 6
A28: 27 | B28: 9 | C28: 9 | D28: 8 | E28: 7 | F28: 9 | G28: 9 | H28: 8 | I28: 8 | J28: 8 | K28: 8 | L28: 7
A29: 28 | B29: 9 | C29: 9 | D29: 9 | E29: 8 | F29: 9 | G29: 9 | H29: 8 | I29: 9 | J29: 8 | K29: 8 | L29: 7
A30: 29 | B30: 9 | C30: 9 | D30: 9 | E30: 8 | F30: 9 | G30: 9 | H30: 9 | I30: 9 | J30: 9 | K30: 9 | L30: 8
A31: 30 | B31: 9 | C31: 9 | D31: 9 | E31: 9 | F31: 9 | G31: 9 | H31: 9 | I31: 9 | J31: 9 | K31: 9 | L31: 9
